Cogmind - Beta 13 @@@ ROGUE MODE // 2024.04.07 @ 07:36:23 Player: Eschess Result: Destroyed by G-50 Soldier with Heavy Laser Performance ------------- Evolutions (5) 2500 Regions Visited (10) 2000 Robots Destroyed (58) 290 Value Destroyed (1982) 1982 Prototype IDs (7) 140 Alien Tech Used (0) 0 Bonus (38) 38 TOTAL SCORE: 6950 Bonus ------- High Alert Combat Kills 27 Follower Combat Kills 11 Cogmind --------- Core Integrity 0/1000 Matter 290/450 Energy 149/150 System Corruption 6% Temperature Cool (9) Movement Core (150) Ox2 Location -5/Factory Parts ------- > --- POWER (4) -------- Micro Fission Core > --- PROPULSION (5) --- (None) > --- UTILITY (5) ------ Advanced Heat Sink Compact Matter Pod Advanced Signal Interpreter Improved Target Analyzer Hacking Suite > --- WEAPON (3) ------- (None) > --- INVENTORY (5) ---- Advanced Weight Redist. System Improved Power Shielding Advanced Field Recycling Unit (0) Peak State ------------ > --- POWER ------------ Micro Nuclear Core Light Angular Momentum Engine > --- PROPULSION ------- Compact Wheel Improved Hover Unit Gravmag Array Improved Linear Gravjet > --- UTILITY ---------- Advanced Weight Redist. System Advanced Signal Interpreter Hacking Suite Hacking Suite Advanced System Shield > --- WEAPON ----------- Plasma Rifle Heavy Rocket Launcher Improved Datajack > --- INVENTORY -------- Wheel Advanced Heat Sink Compact Battery Compact Matter Pod Improved Propulsion Shielding [Rating: 62] Favorites ----------- Power Micro Nuclear Core Engine Light Ion Engine Power Core Micro Nuclear Core Propulsion Wheel Treads Light Treads Leg Improved Carbon-fiber Leg Wheel Wheel Hover Unit Gravmag Array Flight Unit VTOL Module Utility Hacking Suite Device Advanced Weight Redist. System Storage Small Storage Unit Processor Terrain Scan Processor Hackware Hacking Suite Protection Improved Propulsion Shielding Weapon Minigun Energy Gun Plasma Rifle Energy Cannon Long-range Proton Cannon Ballistic Gun Minigun Ballistic Cannon Improved Light Cannon Launcher Heavy Rocket Launcher Slashing Weapon Makeshift Axe Special Melee Weapon Improved Datajack Build | -11 -10 -10 -9 -8 -8 -7 -6 -6 -6 -5 ------- Run | Yrd Mat Min Mat Mat Sto Fac Fac Low Low Fac Slots Evolved 10 | . . . 2 2 . 2 2 . . 2 Power 3 | . . . 1 . . 1 . . . 1 Propulsion 3 | . . . 1 1 . . 1 . . . Utility 3 | . . . . 1 . 1 . . . 1 Weapon 1 | . . . . . . . 1 . . . Parts Attached 113 | 10 1 3 30 5 2 13 8 8 8 25 Power 20 | 1 1 . 9 . . 2 1 2 . 4 Engine 14 | 1 1 . 9 . . 1 . 1 . 1 Core 6 | . . . . . . 1 1 1 . 3 Reactor . | . . . . . . . . . . . Propulsion 39 | 4 . 1 12 1 2 5 3 1 2 8 Treads 2 | 2 . . . . . . . . . . Leg 2 | . . . . . . 1 . . . 1 Wheel 15 | 2 . 1 4 . . 2 . . 2 4 Hover 9 | . . . 1 . . 2 2 1 . 3 Flight 11 | . . . 7 1 2 . 1 . . . Utility 27 | 3 . . 4 2 . 5 1 2 1 9 Device 14 | 2 . . 2 2 . 4 1 1 . 2 Storage 4 | 1 . . . . . . . . 1 2 Processor 3 | . . . 1 . . . . . . 2 Hackware 3 | . . . . . . 1 . . . 2 Protection 3 | . . . 1 . . . . 1 . 1 Artifact . | . . . . . . . . . . . Weapon 27 | 2 . 2 5 2 . 1 3 3 5 4 Energy Gun 4 | 1 . 1 1 . . . . 1 . . Energy Cannon 1 | . . . . . . . . . . 1 Ballistic Gun 10 | 1 . . 3 1 . 1 1 1 2 . Ballistic Cannon 5 | . . . 1 1 . . 2 . . 1 Launcher 4 | . . . . . . . . 1 1 2 Special Weapon . | . . . . . . . . . . . Impact Weapon . | . . . . . . . . . . . Slashing Weapon 1 | . . 1 . . . . . . . . Piercing Weapon . | . . . . . . . . . . . Special Melee Weapon 2 | . . . . . . . . . 2 . Unidentified Prototypes 2 | . . . . . . . 1 . . 1 Corrupted Parts 1 | . . . . . . . . . . 1 System Corruption 1 | . . . . . . . . . . 1 Parts Lost 48 | . . 1 7 . 5 . . 8 4 23 Power 10 | . . . 2 . 1 . . 2 1 4 Propulsion 21 | . . 1 4 . 4 . . 2 1 9 Utility 8 | . . . 1 . . . . 2 1 4 Weapon 9 | . . . . . . . . 2 1 6 Highest Loss Streak 13 | . . 1 3 . 5 . . 5 3 13 To Critical Strikes 1 | . . . . . . . . . 1 . Average Slot Usage (%) 79 | . 100 98 84 100 91 79 91 87 72 52 Engine 8 | . 14 14 18 18 15 7 10 5 6 2 Core 5 | . . . . . . . 8 12 6 3 Wheel 8 | . 28 26 13 . . 5 6 6 6 5 Hover 8 | . . . . . . 7 18 17 7 4 Flight 4 | . . . 11 36 30 11 3 . . . Device 11 | . 14 14 7 18 18 14 17 18 6 3 Storage 3 | . 14 14 7 . . . . . 5 . Processor 2 | . . . 1 9 9 7 1 . . 5 Hackware 5 | . . . . . . 3 6 6 6 14 Protection 1 | . . . 2 . . . . . 6 . Energy Gun 4 | . 14 19 8 . . . . . 6 2 Ballistic Gun 7 | . 14 1 4 9 18 15 12 11 4 . Ballistic Cannon 1 | . . . 2 9 . . 3 4 . 1 Slashing Weapon 1 | . . 6 7 . . . . . . . Special Melee Weapon 1 | . . . . . . . . . 4 2 Naked Turns . | . . . . . . . . . . . Heaviest Build 43 | 14 16 19 29 14 13 26 39 39 43 27 Greatest Support 47 | 40 20 20 30 25 25 27 47 47 38 46 Greatest Overweight (x) 7 | 3 . 1 2 . . 1 . 1 1 7 Average Overweight (x) . | . . . . . . . . . . . Largest Inventory Capacity 8 | 8 8 8 8 5 5 5 5 5 5 5 Average Capacity 5 | 7 8 8 7 5 5 5 5 5 5 5 Most Carried 8 | 8 8 8 8 5 5 5 5 5 5 5 Average Carried 5 | 5 7 7 6 4 4 4 4 4 4 4 Final Capacity 8 | 8 8 8 5 5 5 5 5 5 5 5 Final Carried 8 | 7 8 7 5 5 3 5 5 5 5 3 Class Distribution -------------------- 50% | Mutant 13% | Tank 12% | Hacker-Mutant 11% | Gunner 5% | Sprinter 4% | Scavenger-Sprinter Dominant Class ---------------- Mutant | -10/Materials Mutant | -10/Mines Mutant | -9/Materials Mutant | -8/Materials Sprinter | -8/Storage Mutant | -7/Factory Tank | -6/Factory Gunner | -6/Lower Caves Mutant | -6/Lower Caves Hacker-Mutant | -5/Factory Resources | -11 -10 -10 -9 -8 -8 -7 -6 -6 -6 -5 ----------- Run | Yrd Mat Min Mat Mat Sto Fac Fac Low Low Fac Matter Collected 2084 | 316 . 34 235 . 241 38 4 815 219 182 Remotely . | . . . . . . . . . . . Salvage Created 1922 | 163 . 173 565 . 95 38 . 354 416 118 Parts 92 | 10 . 2 39 . 8 3 . 13 14 3 Haulers Intercepted . | . . . . . . . . . . . Recyclers Shooed 1 | . 1 . . . . . . . . . Parts Field Recycled . | . . . . . . . . . . . Retrieved Matter . | . . . . . . . . . . . Parts Self-Destructed 26 | . . . . . . . . 18 8 . Prevented 3 | . . . . . . . . 3 . . Kills | -11 -10 -10 -9 -8 -8 -7 -6 -6 -6 -5 ------- Run | Yrd Mat Min Mat Mat Sto Fac Fac Low Low Fac Combat Hostiles Destroyed 54 | . . 4 18 . 5 1 . 8 15 3 Melee 15 | . . 2 13 . . . . . . . Guns 20 | . . 2 5 . 5 1 . 7 . . Cannons 4 | . . . . . . . . 1 . 3 AOE 15 | . . . . . . . . . 15 . Classes Destroyed 10 | 2 . 2 3 . . 1 . 1 1 . Tunneler 5 | 5 . . . . . . . . . . Recycler 1 | 1 . . . . . . . . . . Swarmer 16 | . . . 8 . 4 . . 2 2 . Saboteur 1 | . . . . . . . . . 1 . Grunt 20 | . . 2 6 . . . . 3 7 2 Brawler 4 | . . . 1 . . . . . 3 . Duelist 2 | . . . . . . . . 1 1 . Sentry 8 | . . . 3 . 1 . . 2 1 1 Programmer 1 | . . . . . . 1 . . . . Assembled 2 | . . 2 . . . . . . . . Best Kill Streak 15 | 3 . 2 4 . 5 1 . 3 15 2 Combat Bots Only 15 | . . 2 4 . 5 1 . 3 15 2 Max Kills in Single Turn 3 | 1 . 1 1 . 1 1 . 1 3 1 Gunslinging . | . . . . . . . . . . . Exploded 3 | . . . . . . . . . 3 . Melee 1 | . . 1 1 . . . . . . . Uniques/NPCs Destroyed . | . . . . . . . . . . . Combat | -11 -10 -10 -9 -8 -8 -7 -6 -6 -6 -5 -------- Run | Yrd Mat Min Mat Mat Sto Fac Fac Low Low Fac Hostile Shots Fired 511 | . . 17 117 2 67 2 2 103 32 169 Missed 180 | . . 5 49 1 28 1 1 32 10 53 Damage Taken 5551 | 1 . 199 731 15 476 16 20 1230 410 2453 Core 1620 | . . 57 171 . 131 16 . 180 58 1007 Absorbed by Shields . | . . . . . . . . . . . Redirected to Shielding 101 | . . . . . . . . . 57 44 Regen/Repaired (Parts) 104 | . . . 30 . . 16 48 . . 10 Core Remaining (%) 79 | 100 . 77 57 . 76 97 . . 72 . Volleys Fired 151 | 19 4 6 15 . 20 2 . 47 11 27 Largest 3 | 2 2 2 2 . 2 2 . 3 1 1 Hottest 115 | 70 70 115 65 . 48 50 . 89 39 81 Shots Fired 257 | 38 8 12 23 . 40 4 . 94 11 27 Gun 195 | 38 8 12 20 . 40 4 . 72 . 1 Cannon 51 | . . . 3 . . . . 22 . 26 Launcher 11 | . . . . . . . . . 11 . Special . | . . . . . . . . . . . Kinetic 198 | 19 4 . 16 . 40 4 . 94 . 21 Thermal 43 | 19 4 12 7 . . . . . . 1 Explosive 11 | . . . . . . . . . 11 . Electromagnetic 5 | . . . . . . . . . . 5 Robot Hit Streak 13 | 11 3 3 7 . 11 4 . 13 3 4 Robot Miss Streak 7 | 2 2 3 4 . 7 1 . 4 4 4 Penetration Max . | . . . . . . . . . . . Secondary Targets . | . . . . . . . . . . . Shots Hit Robots 191 | 28 4 13 36 . 23 4 . 55 11 17 Core Hits 122 | 10 2 6 21 . 8 3 . 24 43 5 Critical Kills . | . . . . . . . . . . . Critical Parts Destroyed 1 | . . . . . . . . 1 . . Critical Strikes 8 | 3 . 1 . . . . . 1 . 3 Burn 4 | 3 . 1 . . . . . . . . Destroy 1 | . . . . . . . . 1 . . Blast 3 | . . . . . . . . . . 3 Melee Attacks 51 | . . 6 36 . . . . . 8 1 Impact . | . . . . . . . . . . . Slashing 42 | . . 6 36 . . . . . . . Piercing . | . . . . . . . . . . . Sneak Attacks 7 | . . . 1 . . . . . 6 . Combat Hostiles 1 | . . . 1 . . . . . . . Follow-up Attacks . | . . . . . . . . . . . Damage Inflicted 5492 | 287 51 557 1015 . 346 69 . 1144 1569 454 Guns 2013 | 284 51 108 184 . 346 69 . 949 . 22 Cannons 645 | . . . 18 . . . . 195 . 432 Explosions 1569 | . . . . . . . . . 1569 . Melee 1262 | . . 449 813 . . . . . . . Ramming 3 | 3 . . . . . . . . . . Kinetic 2245 | 107 27 . 141 . 346 69 . 1144 . 411 Thermal 392 | 177 24 108 61 . . . . . . 22 Explosive 1569 | . . . . . . . . . 1569 . Electromagnetic 21 | . . . . . . . . . . 21 Impact . | . . . . . . . . . . . Slashing 1262 | . . 449 813 . . . . . . . Piercing . | . . . . . . . . . . . Highest Corruption 6 | . . . . . . . . . . 6 Average Corruption 4 | . . . . . . . . . . 4 Corruption Purged . | . . . . . . . . . . . Corruption Blocked . | . . . . . . . . . . . Effects 8 | . . . . . . . . . . 8 Message Errors 3 | . . . . . . . . . . 3 Matter Fused 2 | . . . . . . . . . . 2 Heat Flow Errors 1 | . . . . . . . . . . 1 Energy Discharges 1 | . . . . . . . . . . 1 Parts Rejected 1 | . . . . . . . . . . 1 Overload Shots . | . . . . . . . . . . . Overflow Damage 152 | . . 121 3 . . . . . 12 16 Projectiles 16 | . . . . . . . . . . 16 Explosions 12 | . . . . . . . . . 12 . Melee 124 | . . 121 3 . . . . . . . Knockbacks 8 | . . . 1 . . . . 5 . 2 Impact . | . . . . . . . . . . . Kinetic 7 | . . . 1 . . . . 4 . 2 Secondary 1 | . . . . . . . . 1 . . Self-Inflicted Damage 40 | 1 . . . . . . . . 39 . Shots 1 | . . . . . . . . . 1 . Rammed 1 | 1 . . . . . . . . . . Targets Rammed 1 | 1 . . . . . . . . . . Kicked . | . . . . . . . . . . . Crushed . | . . . . . . . . . . . Highest Temperature 330 | 90 64 330 90 8 55 . 1 318 26 165 Average Temperature 62 | 34 27 137 24 8 18 . 1 186 13 33 Received Heat Transfer 1461 | . . 105 219 9 126 . 9 360 138 495 Siege Activations . | . . . . . . . . . . . Robots Corrupted . | . . . . . . . . . . . Combat Hostiles . | . . . . . . . . . . . Parts Fried . | . . . . . . . . . . . Impact Corruptions . | . . . . . . . . . . . Robots Melted . | . . . . . . . . . . . Combat Hostiles . | . . . . . . . . . . . Parts Melted 3 | 2 . . 1 . . . . . . . Heat Transferred 1345 | 740 74 333 148 . . . . . . 50 Parts Sabotaged . | . . . . . . . . . . . Parts Stolen 3 | . . . . . . . . . 3 . Parts Stripped . | . . . . . . . . . . . Power Chain Reactions . | . . . . . . . . . . . Alert | -11 -10 -10 -9 -8 -8 -7 -6 -6 -6 -5 ------- Run | Yrd Mat Min Mat Mat Sto Fac Fac Low Low Fac Peak Influence 552 | 30 46 82 552 262 281 165 17 . . 107 Initial 232 | . 19 17 27 232 110 116 . . . 59 Average 121 | 12 35 60 266 235 203 130 13 . . 43 Maximum Alert Level 2 | . . . 2 1 1 . . . . . Low Security (%) 75 | 100 100 100 19 . 39 100 100 . . 100 Level 1 20 | . . . 63 100 60 . . . . . Level 2 4 | . . . 16 . . . . . . . Level 3 . | . . . . . . . . . . . Level 4 . | . . . . . . . . . . . Level 5 . | . . . . . . . . . . . High Security . | . . . . . . . . . . . Max Security . | . . . . . . . . . . . Squads Dispatched 16 | . 1 . 6 . 2 2 1 . 1 3 Investigation 10 | . . . 4 . 1 1 1 . . 3 Extermination . | . . . . . . . . . . . Reinforcement 5 | . 1 . 2 . 1 1 . . . . Assault 1 | . . . . . . . . . 1 . Garrison . | . . . . . . . . . . . Intercept . | . . . . . . . . . . . Searches Triggered . | . . . . . . . . . . . Construction Impeded . | . . . . . . . . . . . Haulers Reinforced . | . . . . . . . . . . . Active Scanning Responses . | . . . . . . . . . . . Cargo Convoy Interrupts . | . . . . . . . . . . . Stealth | -11 -10 -10 -9 -8 -8 -7 -6 -6 -6 -5 --------- Run | Yrd Mat Min Mat Mat Sto Fac Fac Low Low Fac Distress Signals 6 | . . . 4 1 1 . . . . . Communications Jammed . | . . . . . . . . . . . Distress Signals . | . . . . . . . . . . . Times Spotted 146 | . 1 14 57 3 15 3 2 13 20 18 Peak Tracking Total 14 | . 1 12 14 3 9 1 3 2 10 7 Tactical Retreats 14 | . . . 5 . 1 . . 5 1 2 Traps | -11 -10 -10 -9 -8 -8 -7 -6 -6 -6 -5 ------- Run | Yrd Mat Min Mat Mat Sto Fac Fac Low Low Fac Traps Triggered 2 | . . . 1 . . . . . . 1 Indirectly . | . . . . . . . . . . . Trap Hack Attempts . | . . . . . . . . . . . Triggered . | . . . . . . . . . . . Disarmed . | . . . . . . . . . . . Reprogrammed . | . . . . . . . . . . . Reused . | . . . . . . . . . . . Traps Extracted . | . . . . . . . . . . . Installed . | . . . . . . . . . . . Triggered 4 | . . . . . . . . 4 . . Machines | -11 -10 -10 -9 -8 -8 -7 -6 -6 -6 -5 ---------- Run | Yrd Mat Min Mat Mat Sto Fac Fac Low Low Fac Machines Disabled 5 | . 1 . 1 . . . . . 1 2 Max in Single Turn 1 | . 1 . 1 . . . . . 1 1 Machines Repaired . | . . . . . . . . . . . Machines Dismantled . | . . . . . . . . . . . Machines Sabotaged . | . . . . . . . . . . . Overloaded Fab Kills . | . . . . . . . . . . . Hacking | -11 -10 -10 -9 -8 -8 -7 -6 -6 -6 -5 --------- Run | Yrd Mat Min Mat Mat Sto Fac Fac Low Low Fac Machines Accessed 34 | . 2 . 12 . 2 6 4 1 . 7 Terminals 20 | . 1 . 8 . 1 4 3 1 . 2 Fabricators 3 | . . . . . . 1 . . . 2 Repair Stations 7 | . 1 . 2 . . 1 1 . . 2 Recycling Units 2 | . . . 1 . . . . . . 1 Scanalyzers 1 | . . . 1 . . . . . . . Garrison Access 1 | . . . . . 1 . . . . . Total Hacks 105 | . 5 . 39 . 7 13 17 2 . 22 Successful 48 | . 2 . 16 . . 8 10 2 . 10 Failed 57 | . 3 . 23 . 7 5 7 . . 12 Catastrophic 5 | . . . 4 . . . . . . 1 Database Lockouts . | . . . . . . . . . . . Manual 12 | . . . 8 . . . . . . 4 Terminals 65 | . 3 . 26 . 5 9 13 2 . 7 Fabricators 5 | . . . . . . 2 . . . 3 Repair Stations 26 | . 2 . 10 . . 2 4 . . 8 Recycling Units 5 | . . . 1 . . . . . . 4 Scanalyzers 2 | . . . 2 . . . . . . . Garrison Access 2 | . . . . . 2 . . . . . Terminal Hacks 26 | . 1 . 8 . . 4 8 2 . 3 Record 6 | . . . . . . 1 3 2 . . Robot Analysis 1 | . . . 1 . . . . . . . Prototype ID Bank 3 | . 1 . 2 . . . . . . . Open DSF 1 | . . . . . . . 1 . . . Branch Access Points 1 | . . . . . . 1 . . . . Emergency Access Points 2 | . . . 1 . . . 1 . . . Alert Level 3 | . . . 1 . . 1 . . . 1 Unreport Threat 2 | . . . 1 . . . . . . 1 Locate Traps 2 | . . . 2 . . . . . . . Dispatch Records 2 | . . . . . . . 1 . . 1 Recall Investigation 1 | . . . . . . . 1 . . . Recall Reinforcements 1 | . . . . . . 1 . . . . Zone Layout 1 | . . . . . . . 1 . . . Fabricator Hacks 4 | . . . . . . 2 . . . 2 Network Status 1 | . . . . . . 1 . . . . Build 3 | . . . . . . 1 . . . 2 Repair Station Hacks 15 | . 1 . 7 . . 2 2 . . 3 Scan Component 8 | . 1 . 3 . . 1 1 . . 2 Repair 6 | . . . 3 . . 1 1 . . 1 Refit 1 | . . . 1 . . . . . . . Recycling Unit Hacks 3 | . . . 1 . . . . . . 2 Report Inventory 2 | . . . 1 . . . . . . 1 Retrieve Components 1 | . . . . . . . . . . 1 Scanalyzer . | . . . . . . . . . . . Garrison Access Hacks . | . . . . . . . . . . . Unauthorized Hacks . | . . . . . . . . . . . Terminals . | . . . . . . . . . . . Fabricators . | . . . . . . . . . . . Repair Stations . | . . . . . . . . . . . Recycling Units . | . . . . . . . . . . . Scanalyzers . | . . . . . . . . . . . Garrison Access . | . . . . . . . . . . . Data Cores Recovered . | . . . . . . . . . . . Used . | . . . . . . . . . . . Hacking Detections 24 | . 2 . 9 . 2 4 2 . . 5 Full Trace Events 10 | . . . 4 . 2 1 1 . . 2 Feedback Events . | . . . . . . . . . . . Feedback Blocked . | . . . . . . . . . . . Robot Schematics Acquired . | . . . . . . . . . . . Robots Built 1 | . . . . . . 1 . . . . Authchips . | . . . . . . . . . . . Time 81 | . . . . . . 81 . . . . Total Robot Build Rating 1 | . . . . . . 1 . . . . Part Schematics Acquired . | . . . . . . . . . . . Parts Built 2 | . . . . . . . . . . 2 Authchips . | . . . . . . . . . . . Time 192 | . . . . . . . . . . 192 Total Part Build Rating 15 | . . . . . . . . . . 15 Parts Repaired 6 | . . . 3 . . 1 1 . . 1 Time 174 | . . . 78 . . 38 19 . . 39 Parts Recycled . | . . . . . . . . . . . Recycled Matter . | . . . . . . . . . . . Retrieved Matter . | . . . . . . . . . . . Retrieved Components 2 | . . . . . . . . . . 2 Parts Scanalyzed . | . . . . . . . . . . . Part Schematics Acquired . | . . . . . . . . . . . Parts Damaged . | . . . . . . . . . . . Bothacking | -11 -10 -10 -9 -8 -8 -7 -6 -6 -6 -5 ------------ Run | Yrd Mat Min Mat Mat Sto Fac Fac Low Low Fac Used RIF Installer . | . . . . . . . . . . . Robots Hacked 1 | . . . . . . . . . . 1 Non-combat . | . . . . . . . . . . . Combat 1 | . . . . . . . . . . 1 Robot Hacks Applied 1 | . . . . . . . . . . 1 parse_system 1 | . . . . . . . . . . 1 Relay Couplers Released . | . . . . . . . . . . . Fabnet Peak Effective % . | . . . . . . . . . . . Robots Rewired 2 | . . . . . . . . . 2 . Allies Hacked . | . . . . . . . . . . . Hacks Repelled 1 | . . . . . . . . . . 1 Allies | -11 -10 -10 -9 -8 -8 -7 -6 -6 -6 -5 -------- Run | Yrd Mat Min Mat Mat Sto Fac Fac Low Low Fac Total Allies 3 | . . . . . . 1 . . 2 . Largest Group 2 | . . . . . . 1 1 . 2 2 Highest-Rated Group 50 | . . . . . . 10 10 . 50 50 Highest-Rated Ally 30 | . . . . . . 10 10 . 30 30 Total Orders . | . . . . . . . . . . . Ally Attacks 6 | . . . . . . . . . 3 3 Total Damage 205 | . . . . . . . . . 115 90 Kills 2 | . . . . . . . . . 1 1 Allies Corrupted . | . . . . . . . . . . . Allies Melted . | . . . . . . . . . . . Intel | -11 -10 -10 -9 -8 -8 -7 -6 -6 -6 -5 ------- Run | Yrd Mat Min Mat Mat Sto Fac Fac Low Low Fac Robot Analysis Total 1 | . . . 1 . . . . . . . Derelict Logs Recovered 3 | . . . . . . . . 2 1 . Drone Launches . | . . . . . . . . . . . Drone Recoveries . | . . . . . . . . . . . Exploration | -11 -10 -10 -9 -8 -8 -7 -6 -6 -6 -5 ------------- Run | Yrd Mat Min Mat Mat Sto Fac Fac Low Low Fac Turns Passed 4220 | 193 68 240 631 42 161 429 257 920 723 556 Spaces Moved 4765 | 129 63 240 597 100 339 371 371 1297 777 481 Core 70 | 8 . . . . . . . . . 62 Treads 4 | 4 . . . . . . . . . . Legs 43 | . . . . . . 33 . . . 10 Wheels 869 | 117 63 240 224 . . 101 . . . 124 Hover 2932 | . . . 9 . . 193 371 1297 777 285 Flight 847 | . . . 364 100 339 44 . . . . Fastest Speed 26 | 50 80 80 29 26 26 34 53 53 51 40 Average Speed 61 | 84 80 80 56 26 29 74 54 57 66 77 Slowest Speed 400 | 200 80 95 241 26 34 125 61 106 106 400 Overloaded Moves . | . . . . . . . . . . . Propulsion Burnouts . | . . . . . . . . . . . Robots Hopped 9 | . . . 5 . 4 . . . . . Cave-ins Triggered . | . . . . . . . . . . . Exploration Rate (%) 36 | 6 17 56 61 14 53 12 7 97 71 11 Regions Visited 10 Branch Regions 4 Pre-discovered Areas 1 | . . . . . . . . 1 . . Known Exits Taken . | . . . . . . . . . . . Unknown Exits Taken 10 | 1 1 1 1 1 1 1 1 1 1 . Scrap Searched 3 | . . . . . . . . 2 1 . Spaces Dug 3 | . . . . . . . . . . 3 Terrain Destroyed 124 | . . . . . . . . . 113 11 Melee . | . . . . . . . . . . . Projectile 11 | . . . . . . . . . . 11 AOE 113 | . . . . . . . . . 113 . Terrain Rammed . | . . . . . . . . . . . Walls Destroyed . | . . . . . . . . . . . Machines Disabled . | . . . . . . . . . . . Actions | -11 -10 -10 -9 -8 -8 -7 -6 -6 -6 -5 --------- Run | Yrd Mat Min Mat Mat Sto Fac Fac Low Low Fac Total 5807 | 182 74 268 835 117 361 523 433 1406 969 639 Wait 538 | . . 12 110 . 3 106 26 46 160 75 Move 4739 | 128 62 239 588 99 330 370 370 1296 776 481 Hop 7 | . . . 3 . 4 . . . . . Pick Up 129 | 18 4 1 28 7 1 19 14 8 5 24 Fast Attach . | . . . . . . . . . . . Attach 89 | 10 . 1 22 3 2 11 7 7 4 22 Detach 15 | 2 . . 5 1 . 2 4 . . 1 Swap 24 | . 1 2 8 2 . 2 1 1 4 3 Drop 63 | 4 3 1 20 5 1 11 11 1 1 5 Fire 151 | 19 4 6 15 . 20 2 . 47 11 27 Melee 51 | . . 6 36 . . . . . 8 1 Ram 1 | 1 . . . . . . . . . . Kick . | . . . . . . . . . . . Crush . | . . . . . . . . . . . Escape Stasis . | . . . . . . . . . . . Rewire . | . . . . . . . . . . . Trap . | . . . . . . . . . . . Miscellaneous . | . . . . . . . . . . . Route ------- -11/Scrapyard -10/Materials -10/Mines -9/Materials (discovered 2 exits: [*Mat x2]) -8/Materials -8/Storage (discovered 2 exits: *Fac / [Rec]) -7/Factory (discovered 3 exits: *Fac / Low x2) -6/Factory -6/Lower Caves -6/Lower Caves -5/Factory History --------- Turn | Location | Event 8 | -11/Scrapyard | Discovered new exit (range 15) 194 | -11/Scrapyard | Entered Materials 234 | -10/Materials | Discovered new exit (range 12) 262 | -10/Materials | Entered Mines 317 | -10/Mines | Build established: Mutant 355 | -10/Mines | A weapon hastily lodged in a ceiling crevice suddenly fell to the ground 379 | -10/Mines | Assembled infested the area 459 | -10/Mines | Discovered new exit (range 4) 502 | -10/Mines | Entered Materials 502 | -9/Materials | Evolved 2 slots: Power x1, Propulsion x1 648 | -9/Materials | Lost 3 parts (1p2n) 882 | -9/Materials | Repaired Wheel 908 | -9/Materials | Repaired Seismic Detector 1027 | -9/Materials | Discovered new exit (range 11) 1122 | -9/Materials | Repaired Lgt. Ion Engine 1130 | -9/Materials | Discovered new exit (range 12) 1133 | -9/Materials | Entered another Materials area 1133 | -8/Materials | Evolved 2 slots: Propulsion x1, Utility x1 1167 | -8/Materials | Discovered new exit (range 8) 1175 | -8/Materials | Entered Storage 1253 | -8/Storage | Discovered new exit (range 8) 1334 | -8/Storage | Lost 5 parts (1p4n) 1334 | -8/Storage | Discovered new exit (range 8) 1336 | -8/Storage | Entered Factory 1336 | -7/Factory | Evolved 2 slots: Power x1, Utility x1 1395 | -7/Factory | Repaired Adv. Weight Redist. System 1582 | -7/Factory | Identified exit to Lower Caves 1670 | -7/Factory | Fabricated T-07 Excavator (x1) 1744 | -7/Factory | Discovered new exit (range 7) 1765 | -7/Factory | Entered another Factory area 1765 | -6/Factory | Accompanied by 1 ally 1765 | -6/Factory | Evolved 2 slots: Propulsion x1, Weapon x1 1792 | -6/Factory | Identified exit to DSF 1834 | -6/Factory | Repaired Minigun 1905 | -6/Factory | Discovered new exit (range 8) 2022 | -6/Factory | Entered Lower Caves 2102 | -6/Lower Caves | Attracted the attention of an 0b10 checkpoint 2128 | -6/Lower Caves | Learned Factory security intel 2130 | -6/Lower Caves | Build established: Tank 2196 | -6/Lower Caves | Attracted the attention of an 0b10 base 2509 | -6/Lower Caves | Build established: Gunner 2743 | -6/Lower Caves | Lost 5 parts (1p1n1u2w) 2838 | -6/Lower Caves | Discovered new exit (range 14) 2942 | -6/Lower Caves | Entered another Lower Caves area 2999 | -6/Lower Caves | Discovered new exit (range 7) 3008 | -6/Lower Caves | Attracted the attention of an 0b10 outpost 3056 | -6/Lower Caves | Destroyed 15 combat bots 3062 | -6/Lower Caves | Lost 3 parts (1p1n1u) 3267 | -6/Lower Caves | Learned Factory interactive machine intel 3282 | -6/Lower Caves | Encountered a Warlord checkpoint 3406 | -6/Lower Caves | Build established: Mutant 3665 | -6/Lower Caves | Entered Factory 3665 | -5/Factory | Accompanied by 2 allies 3665 | -5/Factory | Evolved 2 slots: Power x1, Utility x1 3667 | -5/Factory | Loaded intel: 51 interactive machine locations 3766 | -5/Factory | Fabricated Adv. System Shield? 3957 | -5/Factory | Build established: Hacker-Mutant 3959 | -5/Factory | Fabricated Enh. Nova Cannon? 3988 | -5/Factory | Lost 13 parts (2p5n2u4w) 4117 | -5/Factory | Repaired Corrupted Antigrav System 4155 | -5/Factory | Core integrity fell below 50% 4182 | -5/Factory | Core integrity fell below 20% 4221 | -5/Factory | Destroyed by G-50 Soldier with Heavy Laser Last Messages --------------- U-05 Engineer builds a Door. Acquired Lgt. Angular Momentum Engine. Critical hit (Burn: +37). Acquired 7 matter. Penetrated by Slug. Hacking Suite destroyed. Penetrated by Slug. System corrupted: Heat flow error (+197). Carbon-fiber Leg destroyed. Adv. System Shield destroyed. Penetrated by Slug. Lgt. Angular Momentum Engine destroyed. Slug penetrates Wall. Acquired 9 matter. Acquired Imp. Target Analyzer. System corrupted: Matter fused (-9). Acquired Adv. Field Recycling Unit. Acquired Imp. Power Shielding. Integrated Corrupted Mic. Fission Core (+1). Slug penetrates Nuclear Reactor. Map ----- +----------------------------------------------------+ | ?????????????????????????????????????????????????? | | ????????????????????????????????""???????????????? | | ????????????????????????????????T????????????????? | | ?????????????????????????????????????????????????? | | ?????????????????????????????????????????????????? | | ?????????????????????????????????????????????????? | | ?????????????????????????????????????????????????? | | ?????????????????????????????????????????????????? | | ?????????????"???????????????????????????????????? | | ?????????????"???????????????????????????????????? | | ?????????????"???????????????????##########??????? | | ?????????????T???????????????????# #??????? | | ?????????????"???????????????????# ""#??????? | | ?????????????"???????????????????# ""#??????? | | ?????????????"???????????????????# "#??????? | | ?????????????????????????????????# "#??????? | | ?????????????????????????????????# ""#??????? | | ?????????????????????????????????# ! #??????? | | ??????????????????????????"T"????# #??????? | | ?????????????????????????????????# ######## | | ?????????????????????????????????# # | | ?????????????????????????????????# """" # | | ????????????????????????########## """"" # | | ????????????????????????# # """ + | | ????????????????????????# g # # | | ????????????????????????#@""" # """"" # | | ????????????????????????# """ # """"" # | | ??????????????????? ??# """ g # """ ## # | | ??????????????????? ?# gg # ## # | | ???????????????????? # """ ########### # | | ????????????????????? # """ h #% # | | ?????????????????????? # """ + # | | ???????????????????????## # # | | ??????????????????????### # # | | ?????""??????????????## # # # | | ????""S??????????????# # + # | | ????""???????????????## # ###+####### # | | ??????????????????????# # # #?# # | | ??????????????????????### # #?# # | | ??????????????????????# # # #?# # | | ??????????????????????### # #?# # | | ???????????????????????########### #?# # | | ??????????????????????###################### # | | ??????????????????????# % % # | | ??????????????????????# # | | ??????????????????????# *%! # | | ??????????????????????# !%* # | | ??????????????????????# ! # | | ??????????????????????# ############+######### | | ""????????????????????# ?????## #????? | +----------------------------------------------------+ Best States ------------- Heat Dissipation 64 Energy Generation 41 Energy Capacity 550 Matter Stores 450 Matter Capacity 450 Sight Range 16 Robot Scan Range 16 Terrain Scan Range 16 Terrain Scan Density 85 Jamming Range 12 Additional Mass Support 9 Armor Coverage 150 Propulsion Shielding 66 Evasion (%) 64 Target Analysis 6 Recoil Reduction 2 Offensive Hacking 20 Defensive Hacking 14 Item Schematics ----------------- None Robot Schematics ------------------ None Fabricated ------------ T-07 Excavator | x1 | -7/Factory | Preloaded Adv. System Shield | x1 | -5/Factory | Preloaded Enh. Nova Cannon | x1 | -5/Factory | Preloaded Alien Tech Used ----------------- None Achievements -------------- A New Friend Cya! GoHome() I Survived The Infestation Just What I Needed Leap Before You Look My Command Is Your Wish Oh No You Don't! Slippery One Tourist Universal Adapter Challenges ------------ None Game ------ Seed ReactionVisualLauncher Manual? 0 Play Time 01:58:15 Cumulative 5.7 hours Start 2024.04.07 @ 05:35:09 End 2024.04.07 @ 07:36:23 Sessions 1 Manual Loads 0 Difficulty Rogue Special Mode None Game No. 5 Rogue 5 Adventurer 0 Explorer 0 Win Type - Total 0 Types 0/0/0/0/0/0/0/0/0 Lore% 2 Gallery% 14 Achievement% 14 Wizard Run 0 Options --------- Layout 0 ASCII 0 Keyboard 0 Movement Numpad Keybinds 0 Fullscreen 1 Font 18/SmallcapsGlow Map View 76x50 Zoom Use 0% Tactical HUD 0 Map Filters NONE Filters NONE Steam 1 RUN: b93dab94-8b34-4457-ae02-6c5f94caddb0